Workbook

Sheet 1
A1: Школа | B1: МБОУ СОШ № 11 | I1: День | J1: 2022-09-06
A3: Прием пищи | B3: Раздел | C3: № рец. | D3: Блюдо | E3: Выход, г | F3: Цена | G3: Калорийность | H3: Белки | I3: Жиры | J3: Углеводы
A4: Завтрак | B4: гор.блюдо | D4: ='[1]Меню старшие 5-11 кл Осень-Зима'!B62 -> Сыр порционно | E4: ='[1]Меню младшие 1-4 кл Осень-Зима'!C66 -> 10 | G4: ='[1]Меню младшие 1-4 кл Осень-Зима'!G66 -> 34.33 | H4: ='[1]Меню младшие 1-4 кл Осень-Зима'!D66 -> 2.63 | I4: ='[1]Меню младшие 1-4 кл Осень-Зима'!E66 -> 2.66 | J4: ='[1]Меню младшие 1-4 кл Осень-Зима'!F66 -> 0.00
B5: гор.напиток | D5: ='[1]Меню старшие 5-11 кл Осень-Зима'!B63 -> Котлеты из мяса кур | E5: ='[1]Меню младшие 1-4 кл Осень-Зима'!C67 -> 90 | G5: ='[1]Меню младшие 1-4 кл Осень-Зима'!G67 -> 179.80 | H5: ='[1]Меню младшие 1-4 кл Осень-Зима'!D67 -> 9.60 | I5: ='[1]Меню младшие 1-4 кл Осень-Зима'!E67 -> 8.66 | J5: ='[1]Меню младшие 1-4 кл Осень-Зима'!F67 -> 19.79
B6: хлеб | D6: ='[1]Меню старшие 5-11 кл Осень-Зима'!B64 -> Каша гречневая рассыпчатая с маслом сливочным | E6: ='[1]Меню младшие 1-4 кл Осень-Зима'!C68 -> 150/5 | G6: ='[1]Меню младшие 1-4 кл Осень-Зима'!G68 -> 207.00 | H6: ='[1]Меню младшие 1-4 кл Осень-Зима'!D68 -> 4.61 | I6: ='[1]Меню младшие 1-4 кл Осень-Зима'!E68 -> 6.92 | J6: ='[1]Меню младшие 1-4 кл Осень-Зима'!F68 -> 27.79
D7: ='[1]Меню старшие 5-11 кл Осень-Зима'!B65 -> Чай с сахаром, с лимоном | E7: ='[1]Меню младшие 1-4 кл Осень-Зима'!C69 -> 185/10/5 | G7: ='[1]Меню младшие 1-4 кл Осень-Зима'!G69 -> 42.00 | H7: ='[1]Меню младшие 1-4 кл Осень-Зима'!D69 -> 0.13 | I7: ='[1]Меню младшие 1-4 кл Осень-Зима'!E69 -> 0.02 | J7: ='[1]Меню младшие 1-4 кл Осень-Зима'!F69 -> 10.20
D8: ='[1]Меню старшие 5-11 кл Осень-Зима'!B66 -> Хлеб пшеничный | E8: ='[1]Меню младшие 1-4 кл Осень-Зима'!C70 -> 25 | G8: ='[1]Меню младшие 1-4 кл Осень-Зима'!G70 -> 58.75 | H8: ='[1]Меню младшие 1-4 кл Осень-Зима'!D70 -> 1.90 | I8: ='[1]Меню младшие 1-4 кл Осень-Зима'!E70 -> 0.20 | J8: ='[1]Меню младшие 1-4 кл Осень-Зима'!F70 -> 12.30
D9: ='[1]Меню старшие 5-11 кл Осень-Зима'!B67 -> Хлеб ржаной | E9: ='[1]Меню младшие 1-4 кл Осень-Зима'!C71 -> 20 | G9: ='[1]Меню младшие 1-4 кл Осень-Зима'!G71 -> 89.10 | H9: ='[1]Меню младшие 1-4 кл Осень-Зима'!D71 -> 1.32 | I9: ='[1]Меню младшие 1-4 кл Осень-Зима'!E71 -> 0.54 | J9: ='[1]Меню младшие 1-4 кл Осень-Зима'!F71 -> 17.82
A10: Завтрак 2 | B10: фрукты | D10: ='[2]Дотация 8,30 руб.'!B17 -> Вафли | E10: ='[2]Дотация 8,30 руб.'!C17 -> 30 | G10: ='[2]Дотация 8,30 руб.'!H17 -> 49.07 | H10: ='[2]Дотация 8,30 руб.'!E17 -> 3.30 | I10: ='[2]Дотация 8,30 руб.'!F17 -> 4.25 | J10: ='[2]Дотация 8,30 руб.'!G17 -> 9.03
D11: ='[2]Дотация 8,30 руб.'!B18 -> Компот из сухофруктов | E11: ='[2]Дотация 8,30 руб.'!C18 -> 200 | G11: ='[2]Дотация 8,30 руб.'!H18 -> 92.80 | H11: ='[2]Дотация 8,30 руб.'!E18 -> 0.66 | I11: ='[2]Дотация 8,30 руб.'!F18 -> 0.09 | J11: ='[2]Дотация 8,30 руб.'!G18 -> 12.01
A12: Обед
